bitfinex/quotes_SOLUSD_20250617
["timestamp","ask_amount","ask_price","bid_price","bid_amount"]
[1750122769003,44.64964886,151.62,151.58,8.07744044]
[1750122769194,26.7270893,151.64,151.57,23.09164082]
[1750122769392,26.7270893,151.64,151.59,8.07744044]
[1750122769594,8.07744044,151.63,151.59,8.07744044]
[1750122770521,8.07744044,151.63,151.6,6.59630606]
[1750122771714,8.07744044,151.62,151.6,6.59630606]
[1750122772024,8.07744044,151.61,151.6,6.59630606]
[1750122772244,8.07744044,151.62,151.58,6.5971764]
[1750122772535,8.07744044,151.6,151.57,6.59761166]
[1750122772906,8.07744044,151.61,151.57,6.59761166]
[1750122774010,27.7,151.62,151.57,6.59761166]
[1750122774213,8.07744044,151.61,151.57,14.6750521]
[1750122775068,27.7,151.62,151.59,8.07744044]
[1750122775524,27.7,151.63,151.59,8.07744044]
[1750122775730,27.7,151.63,151.57,23.09164082]
[1750122775731,27.7,151.63,151.6,8.07744044]
[1750122776621,8.07744044,151.64,151.6,8.07744044]
[1750122776622,18.64964886,151.64,151.6,8.07744044]
[1750122776830,26.7270893,151.64,151.61,6.59587098]
[1750122777132,26.0,151.66,151.63,8.07744044]
[1750122777317,18.64964886,151.67,151.63,8.07744044]
[1750122777839,8.07744044,151.71,151.66,8.07744044]
[1750122778008,8.07744044,151.7,151.66,8.07744044]
[1750122778409,18.64964886,151.7,151.66,8.07744044]
[1750122778815,18.64964886,151.7,151.67,6.59326168]
[1750122779019,26.7270893,151.7,151.67,6.59326168]
[1750122779638,26.7270893,151.7,151.66,6.59355872]
[1750122780829,26.7270893,151.7,151.62,33.885]
[1750122780830,8.07744044,151.67,151.63,6.59459652]
[1750122781018,8.07744044,151.66,151.63,6.59459652]
[1750122781518,0.28432314,151.67,151.62,6.22]
[1750122781933,8.07744044,151.64,151.62,6.22]
[1750122782125,8.07744044,151.63,151.62,6.22]
[1750122782315,8.07744044,151.63,151.58,16.49210176]
[1750122782511,8.07744044,151.62,151.59,6.22]
[1750122782932,8.07744044,151.61,151.59,6.22]
[1750122783133,8.07744044,151.61,151.59,12.81663167]
[1750122783341,8.07744044,151.62,151.59,12.81663167]
[1750122784033,8.07744044,151.6,151.59,6.22]
[1750122786826,27.01141244,151.6,151.59,6.22]
[1750122787427,33.6077185,151.6,151.59,6.22]
[1750122787926,33.6077185,151.6,151.54,6.59882676]
[1750122788136,8.07744044,151.57,151.55,6.22]
[1750122789044,8.07744044,151.58,151.55,12.81843246]
[1750122789532,18.933972,151.6,151.55,12.81843246]
[1750122789738,8.07744044,151.58,151.55,12.81843246]
[1750122790440,8.07744044,151.6,151.55,12.81843246]
[1750122790652,8.07744044,151.6,151.55,20.8958729]
[1750122791333,8.07744044,151.61,151.56,8.07744044]
[1750122791723,8.07744044,151.6,151.56,8.07744044]
[1750122792122,8.07744044,151.59,151.55,12.81843246]
[1750122792324,8.07744044,151.59,151.55,20.8958729]
[1750122792524,8.07744044,151.61,151.56,14.27744044]
[1750122792741,18.64964886,151.63,151.58,8.07744044]
[1750122792944,26.7270893,151.63,151.58,8.07744044]
[1750122793247,18.64964886,151.63,151.59,6.5967412]
[1750122793417,26.7270893,151.63,151.59,14.67418164]
[1750122794038,26.7270893,151.63,151.59,6.5967412]
[1750122794630,18.64964886,151.64,151.6,8.07744044]
[1750122794827,18.64964886,151.64,151.61,8.07744044]
[1750122795035,18.64964886,151.65,151.62,6.22]
[1750122795224,149.24216157,151.67,151.62,20.89279328]
[1750122795426,149.1,151.67,151.65,8.07744044]
[1750122795620,8.07744044,151.68,151.62,12.81535284]
[1750122795850,8.07744044,151.68,151.63,8.07744044]
[1750122796032,8.07744044,151.66,151.62,12.81535284]
[1750122797238,8.07744044,151.65,151.62,12.81535284]
[1750122797851,8.07744044,151.65,151.62,12.81533075]
[1750122798433,8.07744044,151.64,151.62,12.81533075]
[1750122798630,8.07744044,151.64,151.62,6.22]
[1750122799054,4.9173575,151.63,151.62,6.22]
[1750122799242,8.07744044,151.64,151.62,6.22]
[1750122799853,8.07744044,151.63,151.62,6.22]
[1750122800649,26.7270893,151.63,151.62,6.22]
[1750122802748,18.64964886,151.63,151.62,6.22]
[1750122802959,31.64762003,151.63,151.62,6.22]
[1750122803263,38.52694415,151.63,151.62,6.22]
[1750122804366,44.933972,151.62,151.54,6.59891777]
[1750122804571,0.28432314,151.59,151.56,6.22]
[1750122804750,26.7270893,151.57,151.56,6.22]
[1750122807943,33.6090241,151.57,151.56,6.22]
[1750122808175,27.01141244,151.57,151.56,6.22]
[1750122808655,33.75118567,151.57,151.56,6.22]
[1750122809864,0.28432314,151.55,151.51,6.22]
[1750122810178,8.07744044,151.53,151.51,12.82013332]
[1750122810578,26.7270893,151.54,151.51,12.82013332]
[1750122811691,8.07744044,151.52,151.51,6.22]
[1750122812486,18.64964886,151.54,151.51,6.22]
[1750122814260,0.28432314,151.53,151.51,6.22]
[1750122815275,62.04176358,151.52,151.51,6.22]
[1750122817663,62.06176358,151.52,151.51,6.22]
[1750122818267,80.35357401,151.52,151.51,6.22]
[1750122818491,86.95336281,151.52,151.51,6.22]
[1750122818677,0.28432314,151.5,151.46,6.22]
[1750122818874,8.07744044,151.47,151.46,6.22]
[1750122819190,27.01141244,151.47,151.46,6.22]
[1750122819381,54.71141244,151.47,151.46,6.22]
[1750122820472,61.45554139,151.47,151.46,6.22]
[1750122820906,18.64964886,151.43,151.41,6.22]
[1750122821070,26.7270893,151.42,151.41,6.22]
[1750122821266,0.28432314,151.46,151.41,6.22]
[1750122821461,27.7,151.46,151.42,8.07744044]
[1750122822099,149.1,151.5,151.41,6.22]
[1750122822402,35.77744044,151.49,151.45,14.68027966]
[1750122822774,35.77744044,151.49,151.43,6.60371128]
[1750122822775,27.01141244,151.48,151.43,6.60371128]
[1750122822973,8.07744044,151.46,151.43,6.60371128]
[1750122823284,8.07744044,151.47,151.43,6.60371128]
[1750122823486,26.7270893,151.48,151.44,8.07744044]
[1750122824072,26.7270893,151.48,151.43,14.68115172]
[1750122825480,53.7,151.49,151.44,8.07744044]
[1750122825684,18.64964886,151.53,151.47,8.07744044]
[1750122825873,8.07744044,151.52,151.48,6.22]
[1750122826075,26.7270893,151.51,151.48,6.22]
[1750122827288,18.64964886,151.51,151.48,12.82147799]
[1750122827475,26.7270893,151.51,151.48,12.82147799]
[1750122827878,8.07744044,151.5,151.48,6.22]
[1750122828276,18.64964886,151.51,151.48,6.22]
[1750122828277,26.7270893,151.49,151.48,6.22]
[1750122829997,61.31250822,151.49,151.43,6.60365291]
[1750122830198,8.07744044,151.46,151.44,6.22]
[1750122831077,6.88597994,151.48,151.44,6.22]
[1750122831277,0.28432314,151.48,151.44,6.22]
[1750122831480,8.07744044,151.45,151.44,6.22]
[1750122831683,8.07744044,151.46,151.44,6.22]
[1750122832084,8.07744044,151.47,151.44,12.82319949]
[1750122832687,8.07744044,151.48,151.44,12.82319949]
[1750122832881,5.37164049,151.48,151.44,12.82319949]
[1750122833381,5.37164049,151.47,151.44,12.82319949]
[1750122834094,5.37164049,151.46,151.44,6.22]
[1750122834404,5.37164049,151.47,151.44,12.82325105]
[1750122834882,52.95078372,151.49,151.44,12.82325105]
[1750122835086,5.37164049,151.47,151.44,12.82325105]
[1750122835403,5.37164049,151.46,151.44,6.22]
[1750122835914,5.37164049,151.45,151.44,6.22]
[1750122838015,5.37164049,151.49,151.44,18.19487732]
[1750122838314,5.37164049,151.46,151.44,6.22]
[1750122839510,5.37164049,151.47,151.44,12.82310186]
[1750122839699,5.37164049,151.46,151.44,6.22]
[1750122840592,0.28432314,151.48,151.44,6.22]
[1750122840911,5.37164049,151.46,151.44,6.22]
[1750122841090,5.37164049,151.45,151.44,6.22]
[1750122842514,5.37164049,151.46,151.44,6.22]
[1750122842692,0.28432314,151.48,151.44,6.22]
[1750122842893,5.37164049,151.46,151.44,12.82306846]
[1750122843088,5.37164049,151.47,151.44,12.82306846]
[1750122843542,5.37164049,151.46,151.44,12.82306846]
[1750122843696,5.37164049,151.46,151.44,6.22]
[1750122844015,5.37164049,151.46,151.44,12.82326545]
[1750122844312,5.37164049,151.47,151.44,12.82326545]
[1750122845821,5.37164049,151.45,151.44,6.22]
[1750122846317,5.37164049,151.46,151.44,6.22]
[1750122847023,5.37164049,151.45,151.44,6.22]
[1750122847524,18.64964886,151.47,151.44,6.22]
[1750122847824,5.37164049,151.45,151.44,6.22]
[1750122848039,5.37164049,151.46,151.44,6.22]
[1750122849828,24.02128935,151.47,151.44,12.82320683]
[1750122850003,33.07164049,151.48,151.44,12.82320683]
[1750122850618,5.37164049,151.47,151.44,12.82320683]
[1750122851000,5.37164049,151.46,151.44,6.22]
[1750122851200,5.37164049,151.46,151.44,12.82324119]
[1750122851399,5.37164049,151.46,151.44,6.22]
[1750122853000,5.37164049,151.45,151.44,6.22]
[1750122853319,24.02128935,151.45,151.44,6.22]
[1750122853502,52.00561249,151.45,151.44,6.22]
[1750122853700,27.7,151.45,151.44,12.82327522]
[1750122853901,28.94618985,151.48,151.44,12.82327522]
[1750122854107,18.64964886,151.47,151.44,12.82327522]
[1750122854314,19.39567662,151.52,151.44,18.19491571]
[1750122854315,18.64964886,151.51,151.44,18.19491571]
[1750122854626,4.92568485,151.51,151.48,5.37164049]
[1750122854835,6.14433613,151.55,151.49,5.37164049]
[1750122854836,4.92568485,151.54,151.49,5.37164049]
[1750122855010,4.92568485,151.53,151.5,5.37164049]
[1750122855201,4.92568485,151.54,151.51,6.22]
[1750122855723,72.34964886,151.56,151.51,11.59164049]
[1750122855912,18.64964886,151.55,151.52,6.5997888]
[1750122857209,24.02128935,151.55,151.52,6.5997888]
[1750122857430,24.02128935,151.55,151.51,12.82012966]
[1750122857927,24.02128935,151.55,151.5,5.37164049]
[1750122858132,24.02128935,151.55,151.51,6.22]
[1750122859217,5.37164049,151.54,151.51,6.22]
[1750122859527,5.37164049,151.54,151.49,6.22]
[1750122859528,5.37164049,151.52,151.49,6.22]
[1750122859711,5.37164049,151.51,151.49,6.22]
[1750122859907,5.37164049,151.5,151.49,6.22]
[1750122860908,24.02128935,151.5,151.49,6.22]
[1750122861524,26.0,151.5,151.49,6.22]
[1750122861735,31.37164049,151.5,151.49,6.22]
[1750122863316,26.0,151.5,151.49,6.22]
[1750122863515,31.37164049,151.5,151.49,6.22]
[1750122864015,77.70128935,151.5,151.49,6.22]
[1750122869844,84.30194941,151.5,151.49,6.22]
[1750122870035,77.70128935,151.5,151.49,6.22]
[1750122871531,33.05164049,151.51,151.49,6.22]
[1750122871744,5.37164049,151.5,151.49,6.22]
[1750122872826,27.68,151.51,151.49,6.22]
[1750122873034,5.37164049,151.5,151.49,6.22]
[1750122873957,24.02128935,151.5,151.49,6.22]
[1750122875321,30.62194941,151.5,151.49,6.22]
[1750122876742,18.64964886,151.46,151.43,6.2]
[1750122876930,5.37164049,151.44,151.43,6.2]
[1750122878540,51.70128935,151.44,151.43,6.2]
[1750122878853,78.12777406,151.44,151.43,6.2]
[1750122879028,83.49941455,151.44,151.43,6.2]
[1750122879229,0.14216157,151.43,151.38,6.2]
[1750122879430,5.37164049,151.4,151.38,6.2]
[1750122879630,5.37164049,151.39,151.38,6.2]
[1750122879853,27.68,151.4,151.38,6.2]
[1750122880056,5.37164049,151.39,151.38,6.2]
[1750122881654,24.02128935,151.39,151.38,6.2]
[1750122885365,5.37164049,151.39,151.38,6.2]
[1750122886534,27.68,151.4,151.38,6.2]
[1750122886740,5.37164049,151.39,151.38,6.2]
[1750122890175,27.68,151.4,151.38,6.2]
[1750122890367,5.37164049,151.39,151.38,6.2]
[1750122891746,33.05164049,151.4,151.38,6.2]
[1750122891948,5.37164049,151.39,151.38,6.2]
[1750122892664,24.02128935,151.39,151.38,6.2]
[1750122895849,30.91106859,151.39,151.38,6.2]
[1750122896366,31.05323016,151.39,151.38,6.2]
[1750122896759,26.0,151.36,151.33,6.22]
[1750122896966,53.68,151.36,151.33,6.22]
[1750122897167,59.05164049,151.36,151.33,6.22]
[1750122897875,59.05164049,151.36,151.33,12.82798386]
[1750122898077,59.05164049,151.36,151.33,6.22]
[1750122898376,26.0,151.36,151.33,18.19956297]
[1750122899574,5.37164049,151.37,151.33,18.19956297]
[1750122900156,24.02128935,151.38,151.34,5.37164049]
[1750122900360,18.64964886,151.43,151.37,5.37164049]
[1750122900559,5.37164049,151.45,151.4,5.37164049]
[1750122900870,8.22257766,151.47,151.41,11.57164049]
[1750122900871,5.37164049,151.46,151.41,11.57164049]
[1750122901173,5.37164049,151.48,151.43,5.37164049]
[1750122901375,5.37164049,151.48,151.41,7.861]
[1750122901376,26.0,151.47,151.44,5.37164049]
[1750122901557,5.37164049,151.49,151.45,6.60283922]
[1750122901752,5.37164049,151.48,151.45,6.60283922]
[1750122901963,5.37164049,151.51,151.46,5.37164049]
[1750122902153,53.68,151.51,151.45,6.60283922]
[1750122902475,5.37164049,151.48,151.45,6.60283922]
[1750122902673,5.37164049,151.48,151.44,6.60320962]
[1750122902876,26.0,151.49,151.41,7.861]
[1750122902877,46.32964886,151.47,151.41,6.60451394]
[1750122903175,5.37164049,151.44,151.43,6.2]
[1750122903359,5.37164049,151.44,151.42,6.2]
[1750122904271,5.37164049,151.43,151.42,6.2]
[1750122905172,32.6025546,151.46,151.42,6.2]
[1750122905173,27.66,151.44,151.42,6.2]
[1750122905475,33.03164049,151.44,151.42,6.2]
[1750122906059,5.37164049,151.43,151.42,6.2]
[1750122906461,33.03164049,151.44,151.42,12.8041474]
[1750122907271,5.37164049,151.43,151.42,6.2]
[1750122907468,31.37164049,151.46,151.42,12.8041474]
[1750122907670,26.0,151.46,151.42,18.17578789]
[1750122907865,5.37164049,151.47,151.42,18.17578789]
[1750122908365,5.37164049,151.45,151.42,12.8041474]
[1750122908683,5.37164049,151.46,151.42,18.17578789]
[1750122908858,5.37164049,151.46,151.42,12.8041474]
[1750122909059,5.37164049,151.45,151.42,12.8041474]
[1750122909268,5.37164049,151.46,151.42,12.8041474]
[1750122909784,5.37164049,151.46,151.42,18.17578789]
[1750122910665,5.37164049,151.46,151.42,12.8041474]
[1750122910868,5.37164049,151.46,151.42,18.17578789]
[1750122911180,5.37164049,151.45,151.42,12.8041474]
[1750122911576,26.0,151.48,151.42,34.6861564]
[1750122911778,31.37164049,151.48,151.44,5.37164049]
[1750122911978,5.37164049,151.48,151.44,6.60327522]
[1750122912179,18.64964886,151.49,151.44,11.97491571]
[1750122912369,24.02128935,151.49,151.44,11.97491571]
[1750122912873,5.37164049,151.48,151.44,11.97491571]
[1750122914090,5.37164049,151.47,151.44,6.60327522]
[1750122914480,5.37164049,151.46,151.43,6.60361631]
[1750122914669,5.37164049,151.45,151.42,6.2]
[1750122914983,5.37164049,151.45,151.42,12.80401311]
[1750122915566,5.37164049,151.43,151.42,6.2]
[1750122915764,5.37164049,151.44,151.42,6.2]
[1750122917073,18.64964886,151.46,151.42,6.2]
[1750122917376,5.37164049,151.44,151.42,12.80409872]
[1750122917965,31.37164049,151.47,151.42,12.80409872]
[1750122918192,5.37164049,151.49,151.45,5.37164049]
[1750122918402,1.5173,151.51,151.46,5.37164049]
[1750122918569,33.01164049,151.52,151.47,5.37164049]
[1750122918767,5.37164049,151.53,151.49,5.37164049]
[1750122918979,10.28605095,151.55,151.51,5.37164049]
[1750122919181,5.37164049,151.55,151.51,11.57164049]
[1750122919474,5.37164049,151.52,151.51,6.2]
[1750122920997,24.02128935,151.52,151.51,6.2]
[1750122922394,27.64,151.53,151.51,6.2]
[1750122922395,33.01164049,151.53,151.51,6.2]
[1750122922601,24.02128935,151.52,151.51,6.2]
[1750122922773,24.30561249,151.52,151.51,6.2]
[1750122923184,24.02128935,151.52,151.51,6.2]
[1750122924707,18.64964886,151.52,151.51,6.2]
[1750122925229,24.02128935,151.52,151.51,6.2]
[1750122928797,24.02128935,151.52,151.45,16.5068894]
[1750122928798,32.19959636,151.52,151.43,33.7202]
[1750122929106,5.37164049,151.49,151.47,6.2]
[1750122930994,27.62,151.5,151.47,6.2]
[1750122931194,5.37164049,151.49,151.47,6.2]
[1750122933411,24.02128935,151.48,151.47,6.2]
[1750122933805,26.0,151.45,151.43,6.18]
[1750122934109,5.37164049,151.44,151.43,6.18]
[1750122934298,36.42268977,151.44,151.43,6.18]
[1750122934495,44.64964886,151.4,151.37,6.18]
[1750122934793,5.37164049,151.38,151.37,6.18]
[1750122935805,24.02128935,151.38,151.37,6.18]
[1750122936106,18.64964886,151.39,151.37,6.18]
[1750122936308,26.0,151.4,151.37,12.78632886]
[1750122936609,26.0,151.41,151.37,12.78632886]
[1750122936610,5.37164049,151.41,151.37,12.78632886]
[1750122936797,5.37164049,151.41,151.37,18.15796935]
[1750122937192,5.37164049,151.41,151.37,12.78632886]
[1750122938401,5.37164049,151.39,151.37,6.18]
[1750122938910,5.65596363,151.38,151.37,6.18]
[1750122939089,0.28432314,151.38,151.37,6.18]
[1750122939285,5.65596363,151.38,151.37,6.18]
[1750122939588,12.26185608,151.38,151.37,6.18]
[1750122940298,5.37164049,151.38,151.37,6.18]
[1750122940493,24.02128935,151.38,151.37,6.18]
[1750122941022,26.71905895,151.38,151.37,6.18]
[1750122941819,33.75143611,151.38,151.37,6.18]
[1750122941993,27.00338209,151.38,151.37,6.18]
[1750122942187,8.06941009,151.4,151.37,6.18]
[1750122942388,26.71905895,151.4,151.37,6.18]
[1750122945012,8.06941009,151.4,151.37,12.78620494]
[1750122945191,34.06941009,151.41,151.37,20.85561503]
[1750122945712,34.06941009,151.41,151.37,12.78620494]
[1750122945897,8.06941009,151.4,151.37,12.78620494]
[1750122947789,8.06941009,151.39,151.37,6.18]
[1750122947990,11.39295539,151.49,151.41,26.0]
[1750122948191,8.06941009,151.51,151.46,8.06941009]
[1750122948397,8.06941009,151.51,151.47,6.18]
[1750122949016,8.06941009,151.51,151.48,6.60153155]
[1750122949219,8.06941009,151.51,151.47,12.78189366]
[1750122950018,8.06941009,151.51,151.47,6.18]
[1750122950225,26.71905895,151.48,151.47,6.18]
[1750122951889,18.64964886,151.44,151.38,1.5634]
[1750122952109,26.71905895,151.44,151.39,20.85486619]
[1750122952841,26.71905895,151.44,151.39,6.18]
[1750122952842,8.06941009,151.42,151.39,6.18]
[1750122953114,8.06941009,151.41,151.4,6.18]
[1750122953322,8.06941009,151.42,151.4,6.18]
[1750122953701,26.0,151.45,151.4,6.18]
[1750122953890,27.62,151.45,151.41,8.06941009]
[1750122955043,27.62,151.45,151.41,14.67367426]
[1750122955247,35.68941009,151.45,151.41,14.67367426]
[1750122955521,8.06941009,151.43,151.4,6.18]
[1750122955723,8.06941009,151.43,151.4,12.7849396]
[1750122956205,8.06941009,151.43,151.4,6.18]
[1750122956400,18.64964886,151.44,151.4,6.18]
[1750122956401,8.06941009,151.42,151.4,6.18]
[1750122957220,8.06941009,151.43,151.4,6.18]
[1750122957604,26.0,151.45,151.4,20.85433638]
[1750122957826,61.66941009,151.45,151.4,20.85433638]
[1750122958302,61.66941009,151.45,151.41,8.06941009]
[1750122958637,26.0,151.45,151.41,8.06941009]
[1750122959005,26.0,151.45,151.42,6.6041474]
[1750122959310,26.0,151.45,151.42,14.67355749]
[1750122959907,26.0,151.45,151.42,6.6041474]
[1750122960101,8.06941009,151.44,151.37,6.2983]
[1750122960301,8.06941009,151.44,151.37,6.18]
[1750122960302,8.06941009,151.39,151.37,6.18]
[1750122960509,8.06941009,151.38,151.37,6.18]
[1750122961008,26.71905895,151.38,151.37,6.18]
[1750122961739,18.64964886,151.37,151.3,9.66471009]
[1750122961915,8.06941009,151.35,151.33,6.16]
[1750122962115,27.6,151.36,151.33,6.16]
[1750122962116,26.71905895,151.34,151.33,6.16]
[1750122962335,53.6,151.36,151.33,6.16]
[1750122962522,61.66941009,151.36,151.33,6.16]
[1750122962715,8.06941009,151.34,151.33,6.16]
[1750122963220,18.64964886,151.35,151.33,6.16]
[1750122963528,53.6,151.36,151.33,12.76802914]
[1750122963944,27.6,151.36,151.33,20.83743923]
[1750122964239,54.31905895,151.38,151.33,20.83743923]
[1750122964409,46.24964886,151.38,151.33,20.83743923]
[1750122964610,54.31905895,151.38,151.33,20.83743923]
[1750122965001,54.31905895,151.38,151.35,6.60720185]
[1750122965634,35.66941009,151.38,151.35,6.60720185]
[1750122965808,26.0,151.39,151.35,14.67661194]
[1750122966227,54.33905895,151.4,151.36,8.06941009]
[1750122966526,8.06941009,151.39,151.35,14.67661194]
[1750122967206,26.71905895,151.4,151.35,14.67661194]
[1750122967434,26.71905895,151.4,151.36,8.06941009]
[1750122968122,26.71905895,151.4,151.35,14.67661194]
[1750122968311,8.06941009,151.39,151.35,14.67661194]
[1750122968513,8.06941009,151.41,151.37,8.06941009]
[1750122968714,8.06941009,151.42,151.38,8.06941009]
[1750122969115,8.06941009,151.42,151.38,6.60565907]
[1750122969345,35.66941009,151.42,151.38,6.60565907]
[1750122970414,26.71905895,151.43,151.39,8.06941009]
[1750122970617,46.24964886,151.43,151.4,6.16]
[1750122970924,8.06941009,151.42,151.4,6.16]
[1750122971124,54.31905895,151.43,151.4,6.16]
[1750122971541,54.31905895,151.43,151.4,12.76501038]
[1750122972638,8.06941009,151.45,151.4,20.83442047]
[1750122973026,35.66941009,151.45,151.4,20.83442047]
[1750122973230,8.06941009,151.45,151.42,6.6041474]
[1750122973537,8.06941009,151.47,151.43,8.06941009]
[1750122973927,8.06941009,151.46,151.42,14.67355749]
[1750122974126,8.06941009,151.46,151.42,6.6041474]
[1750122974327,8.06941009,151.46,151.42,14.67355749]
[1750122974723,8.06941009,151.47,151.43,8.06941009]
[1750122974919,27.6,151.48,151.44,6.60327522]
[1750122975144,26.0,151.47,151.44,14.67268531]
[1750122975523,34.06941009,151.47,151.44,6.60327522]
[1750122976223,26.0,151.47,151.44,6.60327522]
[1750122976423,34.06941009,151.47,151.44,6.60327522]
[1750122978843,27.6,151.49,151.44,6.60327522]
[1750122978844,8.06941009,151.48,151.44,6.60327522]
[1750122979018,18.64964886,151.52,151.47,8.06941009]
[1750122979225,18.64964886,151.52,151.48,14.22941009]
[1750122979226,54.31905895,151.52,151.48,14.22941009]
[1750122979424,46.24964886,151.52,151.48,14.22941009]
[1750122979649,8.06941009,151.5,151.48,6.16]
[1750122979845,0.28432314,151.53,151.48,6.16]
[1750122980030,35.66941009,151.51,151.48,6.16]
[1750122980626,27.6,151.51,151.48,6.16]
[1750122980944,26.71905895,151.52,151.49,6.60109578]
[1750122981846,26.28432314,151.54,151.49,6.60109578]
[1750122981847,53.88432314,151.54,151.49,6.60109578]
[1750122982049,8.06941009,151.53,151.49,6.60109578]
[1750122982347,8.06941009,151.52,151.49,6.60109578]
[1750122982725,8.06941009,151.51,151.49,6.60109578]
[1750122983052,8.06941009,151.51,151.48,12.76138846]
[1750122983429,26.71905895,151.49,151.48,6.16]
[1750122984158,27.00338209,151.49,151.48,6.16]
[1750122985234,26.71905895,151.49,151.48,6.16]
[1750122985453,8.06941009,151.49,151.48,6.16]
[1750122985655,35.66941009,151.5,151.48,6.16]
[1750122986341,1.6257,151.55,151.48,12.76136661]
[1750122986540,26.71905895,151.54,151.49,8.06941009]
[1750122987056,8.06941009,151.51,151.48,12.76136661]
[1750122987359,18.64964886,151.54,151.48,12.76136661]
[1750122987360,8.06941009,151.5,151.48,12.76136661]
[1750122987526,8.06941009,151.51,151.49,6.2]
[1750122987731,35.64941009,151.52,151.49,6.2]
[1750122988238,8.06941009,151.51,151.49,6.2]
[1750122988844,35.64941009,151.52,151.49,6.2]
[1750122989051,26.71905895,151.5,151.49,12.36]
[1750122989440,27.14554366,151.5,151.49,12.36]
[1750122990058,54.72554366,151.5,151.49,12.36]
[1750122990249,54.72554366,151.5,151.49,6.16]
[1750122990974,61.32620372,151.5,151.49,6.16]
[1750122991154,18.64964886,151.45,151.44,6.16]
[1750122991353,54.58338209,151.45,151.44,6.16]
[1750122992257,61.32838288,151.45,151.44,6.16]
[1750122992460,61.32838288,151.45,151.36,7.9836]
[1750122992461,18.64964886,151.41,151.39,6.14]
[1750122992645,8.06941009,151.4,151.39,6.14]
[1750122993243,8.03866157,151.49,151.39,14.20941009]
[1750122993487,8.06941009,151.51,151.46,8.06941009]
[1750122993768,26.0,151.49,151.47,14.20941009]
[1750122993947,26.0,151.49,151.48,6.14]
[1750122994840,26.71905895,151.5,151.48,6.14]
[1750122995073,26.0,151.49,151.48,6.14]
[1750122996141,26.0,151.49,151.48,12.74153155]
[1750122996361,26.0,151.49,151.48,6.14]
[1750122997778,26.0,151.49,151.48,12.34]
[1750122999410,26.0,151.49,151.48,18.94153155]
[1750123000565,44.64964886,151.49,151.48,12.34]
[1750123000778,52.71905895,151.49,151.48,12.34]
[1750123000973,53.00338209,151.49,151.48,12.34]
[1750123001690,53.14554366,151.49,151.48,12.34]
[1750123001991,52.71905895,151.49,151.48,12.34]
[1750123003182,26.0,151.49,151.48,12.34]
[1750123003486,26.0,151.49,151.48,18.94153155]
[1750123003869,18.64964886,151.51,151.48,18.94153155]
[1750123004065,18.64964886,151.51,151.48,27.01094164]
[1750123005169,34.06941009,151.53,151.49,8.06941009]
[1750123005477,18.64964886,151.54,151.5,8.06941009]
[1750123005876,26.71905895,151.54,151.5,8.06941009]
[1750123006596,34.06941009,151.55,151.51,8.06941009]
[1750123006803,26.0,151.55,151.51,8.06941009]
[1750123006977,26.0,151.55,151.52,6.5997888]
[1750123007984,26.0,151.55,151.49,8.06941009]
[1750123007985,26.71905895,151.54,151.49,8.06941009]
[1750123008186,8.06941009,151.5,151.48,6.2]
[1750123008395,8.06941009,151.51,151.49,6.14]
[1750123008701,26.71905895,151.52,151.49,6.14]
[1750123008899,8.06941009,151.51,151.49,6.14]
[1750123009694,8.06941009,151.5,151.49,6.14]
[1750123011572,52.80945015,151.52,151.49,6.14]
[1750123011573,8.06941009,151.51,151.49,6.14]
[1750123012298,8.06941009,151.5,151.49,6.14]
[1750123012803,26.71905895,151.5,151.49,6.14]
[1750123013383,26.71905895,151.5,151.48,6.2]
[1750123013384,18.64964886,151.49,151.48,6.2]
[1750123013584,26.71905895,151.49,151.45,6.14]
[1750123015902,8.06941009,151.48,151.46,6.2]
[1750123017816,8.06941009,151.47,151.46,6.2]
[1750123018987,18.64964886,151.49,151.46,6.2]
[1750123019200,26.71905895,151.49,151.46,6.2]
[1750123019399,18.64964886,151.49,151.46,6.2]
[1750123019628,8.06941009,151.48,151.46,6.2]
[1750123020209,26.71905895,151.49,151.46,6.2]
[1750123020410,18.64964886,151.49,151.46,6.2]
[1750123020707,26.71905895,151.49,151.46,6.2]
[1750123021009,8.06941009,151.48,151.46,6.2]